[Event "Titled Tuesday Blitz August 09 Early 2022"]
[White "Kazancev, Valerij M"]
[Black "Goldin, Roman"]
[WhiteFideId "4179609"]
[BlackFideId "2803860"]
[WhiteElo "2534"]
[BlackElo "2312"]
[Result "1-0"]
[Round "10"]
[TimeControl "180+1"]
[Date "2022.08.09"]
[WhiteClock "0:00:56"]
[BlackClock "0:00:02"]

1. c4 {[%clk 0:03:00]}  e5 {[%clk 0:02:57]} 2. Nc3 {[%clk 0:02:59]}  Nf6 {[%clk 0:02:54]} 3. g3 {[%clk 0:03:00]}  d5 {[%clk 0:02:53]} 4. cxd5 {[%clk 0:03:01]}  Nxd5 {[%clk 0:02:54]} 5. Bg2 {[%clk 0:03:02]}  Nb6 {[%clk 0:02:54]} 6. a4 {[%clk 0:03:00]}  a5 {[%clk 0:02:49]} 7. Nf3 {[%clk 0:02:54]}  Nc6 {[%clk 0:02:46]} 8. O-O {[%clk 0:02:55]}  g6 {[%clk 0:02:38]} 9. d4 {[%clk 0:02:47]}  exd4 {[%clk 0:02:32]} 10. Nb5 {[%clk 0:02:46]}  Bg7 {[%clk 0:02:32]} 11. Bf4 {[%clk 0:02:46]}  Nd5 {[%clk 0:02:33]} 12. Nfxd4 {[%clk 0:02:45]}  Nxd4 {[%clk 0:02:17]} 13. Bxd5 {[%clk 0:02:44]}  Nxb5 {[%clk 0:02:04]} 14. axb5 {[%clk 0:02:45]}  O-O {[%clk 0:01:58]} 15. Rc1 {[%clk 0:02:27]}  Bxb2 {[%clk 0:01:47]} 16. Rc2 {[%clk 0:02:26]}  Qf6 {[%clk 0:01:21]} 17. Bxc7 {[%clk 0:02:21]}  a4 {[%clk 0:01:19]} 18. Qb1 {[%clk 0:01:55]}  a3 {[%clk 0:01:18]} 19. e4 {[%clk 0:01:53]}  Bd4 {[%clk 0:01:02]} 20. Kg2 {[%clk 0:01:46]}  Re8 {[%clk 0:00:36]} 21. f4 {[%clk 0:01:38]}  Qe7 {[%clk 0:00:28]} 22. Rd1 {[%clk 0:01:34]}  Qd7 {[%clk 0:00:28]} 23. Rxd4 {[%clk 0:01:30]}  Qh3+ {[%clk 0:00:23]} 24. Kg1 {[%clk 0:01:30]}  Bg4 {[%clk 0:00:21]} 25. Qa2 {[%clk 0:01:20]}  Be6 {[%clk 0:00:13]} 26. Bxe6 {[%clk 0:01:09]}  Rxe6 {[%clk 0:00:11]} 27. e5 {[%clk 0:01:08]}  Ree8 {[%clk 0:00:05]} 28. b6 {[%clk 0:01:08]}  Ra5 {[%clk 0:00:03]} 29. Rc3 {[%clk 0:01:02]}  h5 {[%clk 0:00:03]} 30. Rxa3 {[%clk 0:01:02]}  Rxa3 {[%clk 0:00:03]} 31. Qxa3 {[%clk 0:01:02]}  h4 {[%clk 0:00:03]} 32. Qf3 {[%clk 0:00:59]}  Ra8 {[%clk 0:00:03]} 33. Rd8+ {[%clk 0:00:58]}  Rxd8 {[%clk 0:00:03]} 34. Bxd8 {[%clk 0:00:59]}  Qd7 {[%clk 0:00:02]} 35. Bxh4 {[%clk 0:00:56]} 1-0


[Site "https://www.chess.com"]

[Event "Titled Tuesday Blitz August 09 Early 2022"]
[White "Khabinets, Ivan"]
[Black "Karttunen, Mika"]
[WhiteFideId "14115980"]
[BlackFideId "502081"]
[WhiteElo "2114"]
[BlackElo "2343"]
[Result "1-0"]
[Round "10"]
[TimeControl "180+1"]
[Date "2022.08.09"]
[WhiteClock "0:01:21"]
[BlackClock "0:00:02"]

1. e4 {[%clk 0:02:10]}  c5 {[%clk 0:02:59]} 2. Nf3 {[%clk 0:02:09]}  d6 {[%clk 0:02:59]} 3. Bb5+ {[%clk 0:02:09]}  Nc6 {[%clk 0:02:58]} 4. O-O {[%clk 0:02:08]}  Bd7 {[%clk 0:02:58]} 5. c3 {[%clk 0:02:07]}  a6 {[%clk 0:02:50]} 6. Ba4 {[%clk 0:02:04]}  Ne5 {[%clk 0:02:36]} 7. Bc2 {[%clk 0:02:02]}  Bg4 {[%clk 0:02:27]} 8. d4 {[%clk 0:02:02]}  Nxf3+ {[%clk 0:02:23]} 9. gxf3 {[%clk 0:02:02]}  Bh3 {[%clk 0:02:24]} 10. Re1 {[%clk 0:02:01]}  Rc8 {[%clk 0:01:47]} 11. Bd3 {[%clk 0:01:58]}  e5 {[%clk 0:01:38]} 12. dxe5 {[%clk 0:01:51]}  dxe5 {[%clk 0:01:33]} 13. Bf1 {[%clk 0:01:51]}  Be6 {[%clk 0:01:19]} 14. Qxd8+ {[%clk 0:01:46]}  Rxd8 {[%clk 0:01:19]} 15. Be3 {[%clk 0:01:47]}  Nf6 {[%clk 0:01:14]} 16. Nd2 {[%clk 0:01:45]}  Be7 {[%clk 0:00:56]} 17. Nc4 {[%clk 0:01:44]}  Nd7 {[%clk 0:00:54]} 18. Rad1 {[%clk 0:01:42]}  O-O {[%clk 0:00:54]} 19. Nd6 {[%clk 0:01:41]}  Rb8 {[%clk 0:00:52]} 20. Bc4 {[%clk 0:01:37]}  Bxc4 {[%clk 0:00:29]} 21. Nxc4 {[%clk 0:01:36]}  Rfd8 {[%clk 0:00:26]} 22. Rd5 {[%clk 0:01:33]}  f6 {[%clk 0:00:08]} 23. Red1 {[%clk 0:01:33]}  Nf8 {[%clk 0:00:08]} 24. Rxd8 {[%clk 0:01:28]}  Rxd8 {[%clk 0:00:09]} 25. Rxd8 {[%clk 0:01:29]}  Bxd8 {[%clk 0:00:09]} 26. Bxc5 {[%clk 0:01:30]}  Ne6 {[%clk 0:00:08]} 27. Be3 {[%clk 0:01:29]}  Bc7 {[%clk 0:00:08]} 28. Kf1 {[%clk 0:01:28]}  b5 {[%clk 0:00:08]} 29. Nd2 {[%clk 0:01:28]}  g5 {[%clk 0:00:08]} 30. c4 {[%clk 0:01:27]}  Kf7 {[%clk 0:00:08]} 31. cxb5 {[%clk 0:01:26]}  axb5 {[%clk 0:00:09]} 32. Ke2 {[%clk 0:01:27]}  Ke7 {[%clk 0:00:09]} 33. Kd3 {[%clk 0:01:25]}  Kd6 {[%clk 0:00:09]} 34. b4 {[%clk 0:01:24]}  Kc6 {[%clk 0:00:10]} 35. Nb3 {[%clk 0:01:24]}  Bd6 {[%clk 0:00:09]} 36. a3 {[%clk 0:01:24]}  h5 {[%clk 0:00:08]} 37. Na5+ {[%clk 0:01:24]}  Kc7 {[%clk 0:00:08]} 38. Kc3 {[%clk 0:01:23]}  h4 {[%clk 0:00:08]} 39. h3 {[%clk 0:01:23]}  Nf8 {[%clk 0:00:07]} 40. Kb3 {[%clk 0:01:22]}  Nd7 {[%clk 0:00:07]} 41. a4 {[%clk 0:01:22]}  bxa4+ {[%clk 0:00:08]} 42. Kxa4 {[%clk 0:01:23]}  Nf8 {[%clk 0:00:07]} 43. Kb5 {[%clk 0:01:23]}  Ne6 {[%clk 0:00:07]} 44. Nc4 {[%clk 0:01:23]}  Be7 {[%clk 0:00:06]} 45. Nb6 {[%clk 0:01:21]}  Kd6 {[%clk 0:00:06]} 46. Bc5+ {[%clk 0:01:19]}  Nxc5 {[%clk 0:00:04]} 47. bxc5+ {[%clk 0:01:20]}  Kc7 {[%clk 0:00:04]} 48. Nd5+ {[%clk 0:01:21]}  Kd7 {[%clk 0:00:02]} 49. c6+ {[%clk 0:01:21]}  Ke6 {[%clk 0:00:02]} 50. Nxe7 {[%clk 0:01:21]} 1-0


[Site "https://www.chess.com"]

[Event "Titled Tuesday Blitz August 09 Early 2022"]
[White "Kiseljova, Marya"]
[Black "Gatterer, Florian"]
[WhiteFideId "4155009"]
[BlackFideId "811688"]
[WhiteElo "1697"]
[BlackElo "2218"]
[Result "1/2-1/2"]
[Round "10"]
[TimeControl "180+1"]
[Date "2022.08.09"]
[WhiteClock "0:02:13"]
[BlackClock "0:02:19"]

1. d4 {[%clk 0:02:57]}  d5 {[%clk 0:02:56]} 2. c4 {[%clk 0:02:58]}  e6 {[%clk 0:02:56]} 3. Nf3 {[%clk 0:02:57]}  a6 {[%clk 0:02:56]} 4. g3 {[%clk 0:02:46]}  dxc4 {[%clk 0:02:55]} 5. Bg2 {[%clk 0:02:47]}  b5 {[%clk 0:02:40]} 6. Ne5 {[%clk 0:02:41]}  Ra7 {[%clk 0:02:41]} 7. a4 {[%clk 0:02:34]}  Bb7 {[%clk 0:02:34]} 8. Bxb7 {[%clk 0:02:18]}  Rxb7 {[%clk 0:02:35]} 9. axb5 {[%clk 0:02:19]}  axb5 {[%clk 0:02:34]} 10. Ra8 {[%clk 0:02:17]}  Bb4+ {[%clk 0:02:20]} 11. Bd2 {[%clk 0:02:12]}  Bxd2+ {[%clk 0:02:20]} 12. Qxd2 {[%clk 0:02:13]}  Ne7 {[%clk 0:02:19]} 1/2-1/2


[Site "https://www.chess.com"]

[Event "Titled Tuesday Blitz August 09 Early 2022"]
[White "Lakshmi C"]
[Black "White, John S."]
[WhiteFideId "25035347"]
[BlackFideId "2502348"]
[WhiteElo "1775"]
[BlackElo "1963"]
[Result "1-0"]
[Round "10"]
[TimeControl "180+1"]
[Date "2022.08.09"]
[WhiteClock "0:00:08"]
[BlackClock "0:00:08"]

1. e4 {[%clk 0:02:54]}  c5 {[%clk 0:02:58]} 2. Nf3 {[%clk 0:02:53]}  e6 {[%clk 0:02:58]} 3. d4 {[%clk 0:02:53]}  cxd4 {[%clk 0:02:58]} 4. Nxd4 {[%clk 0:02:53]}  Nc6 {[%clk 0:02:57]} 5. Nc3 {[%clk 0:02:51]}  d6 {[%clk 0:02:57]} 6. Be3 {[%clk 0:02:49]}  Nf6 {[%clk 0:02:56]} 7. Be2 {[%clk 0:02:43]}  Be7 {[%clk 0:02:55]} 8. O-O {[%clk 0:02:42]}  O-O {[%clk 0:02:54]} 9. f4 {[%clk 0:02:34]}  a6 {[%clk 0:02:49]} 10. a4 {[%clk 0:02:30]}  Qc7 {[%clk 0:02:47]} 11. Nb3 {[%clk 0:02:28]}  Bd7 {[%clk 0:02:43]} 12. a5 {[%clk 0:02:27]}  Be8 {[%clk 0:02:12]} 13. Bb6 {[%clk 0:02:25]}  Qb8 {[%clk 0:02:09]} 14. f5 {[%clk 0:02:17]}  Nd7 {[%clk 0:02:01]} 15. Be3 {[%clk 0:02:09]}  Nde5 {[%clk 0:01:48]} 16. Na4 {[%clk 0:01:55]}  Nd7 {[%clk 0:01:42]} 17. fxe6 {[%clk 0:01:45]}  fxe6 {[%clk 0:01:40]} 18. Bc4 {[%clk 0:01:44]}  Nd8 {[%clk 0:01:27]} 19. Rxf8+ {[%clk 0:01:13]}  Bxf8 {[%clk 0:01:21]} 20. Nd4 {[%clk 0:01:12]}  Bf7 {[%clk 0:01:04]} 21. Bb3 {[%clk 0:00:41]}  d5 {[%clk 0:00:57]} 22. exd5 {[%clk 0:00:37]}  exd5 {[%clk 0:00:55]} 23. Nb6 {[%clk 0:00:32]}  Nxb6 {[%clk 0:00:54]} 24. axb6 {[%clk 0:00:32]}  Qe5 {[%clk 0:00:54]} 25. Qf3 {[%clk 0:00:28]}  Bc5 {[%clk 0:00:44]} 26. c3 {[%clk 0:00:27]}  Nc6 {[%clk 0:00:40]} 27. Nc2 {[%clk 0:00:18]}  Bxe3+ {[%clk 0:00:38]} 28. Nxe3 {[%clk 0:00:18]}  Rd8 {[%clk 0:00:32]} 29. Rf1 {[%clk 0:00:16]}  Be6 {[%clk 0:00:24]} 30. Ng4 {[%clk 0:00:14]}  d4 {[%clk 0:00:15]} 31. Nxe5 {[%clk 0:00:12]}  Bxb3 {[%clk 0:00:11]} 32. Nxc6 {[%clk 0:00:12]}  bxc6 {[%clk 0:00:11]} 33. cxd4 {[%clk 0:00:12]}  h6 {[%clk 0:00:09]} 34. Qxb3+ {[%clk 0:00:11]}  Kh8 {[%clk 0:00:08]} 35. b7 {[%clk 0:00:11]}  Rb8 {[%clk 0:00:06]} 36. Rf8+ {[%clk 0:00:10]}  Rxf8 {[%clk 0:00:05]} 37. b8=Q {[%clk 0:00:09]}  Rxb8 {[%clk 0:00:03]} 38. Qxb8+ {[%clk 0:00:09]}  Kh7 {[%clk 0:00:04]} 39. Qd6 {[%clk 0:00:09]}  h5 {[%clk 0:00:05]} 40. Qxc6 {[%clk 0:00:09]}  a5 {[%clk 0:00:05]} 41. Qe4+ {[%clk 0:00:09]}  Kg8 {[%clk 0:00:05]} 42. d5 {[%clk 0:00:10]}  Kf8 {[%clk 0:00:05]} 43. d6 {[%clk 0:00:10]}  a4 {[%clk 0:00:06]} 44. Qe7+ {[%clk 0:00:10]}  Kg8 {[%clk 0:00:06]} 45. d7 {[%clk 0:00:10]}  Kh7 {[%clk 0:00:07]} 46. d8=Q {[%clk 0:00:10]}  a3 {[%clk 0:00:08]} 47. Qe4+ {[%clk 0:00:10]}  Kh6 {[%clk 0:00:08]} 48. Qh8+ {[%clk 0:00:08]}  Kg5 {[%clk 0:00:08]} 49. Qxg7# {[%clk 0:00:08]} 1-0


[Site "https://www.chess.com"]

[Event "Titled Tuesday Blitz August 09 Early 2022"]
[White "Large, Peter G"]
[Black "Kaufman, Raymond"]
[WhiteFideId "400866"]
[BlackFideId "2015056"]
[WhiteElo "2064"]
[BlackElo "2321"]
[Result "0-1"]
[Round "10"]
[TimeControl "180+1"]
[Date "2022.08.09"]
[WhiteClock "0:00:05"]
[BlackClock "0:00:22"]

1. Nf3 {[%clk 0:02:58]}  d5 {[%clk 0:02:50]} 2. b3 {[%clk 0:02:58]}  Bg4 {[%clk 0:02:44]} 3. Bb2 {[%clk 0:02:57]}  Nd7 {[%clk 0:02:41]} 4. e3 {[%clk 0:02:48]}  Ngf6 {[%clk 0:02:38]} 5. h3 {[%clk 0:02:46]}  Bxf3 {[%clk 0:02:37]} 6. Qxf3 {[%clk 0:02:45]}  e5 {[%clk 0:02:38]} 7. d3 {[%clk 0:02:44]}  Bb4+ {[%clk 0:02:28]} 8. c3 {[%clk 0:02:44]}  Bd6 {[%clk 0:02:27]} 9. Nd2 {[%clk 0:02:44]}  O-O {[%clk 0:02:27]} 10. g3 {[%clk 0:02:44]}  Re8 {[%clk 0:02:19]} 11. Qe2 {[%clk 0:02:44]}  e4 {[%clk 0:02:19]} 12. d4 {[%clk 0:02:42]}  a5 {[%clk 0:02:17]} 13. a4 {[%clk 0:02:39]}  c6 {[%clk 0:02:14]} 14. Bg2 {[%clk 0:02:38]}  h5 {[%clk 0:02:13]} 15. O-O {[%clk 0:02:18]}  h4 {[%clk 0:02:11]} 16. g4 {[%clk 0:02:18]}  Nh7 {[%clk 0:02:10]} 17. c4 {[%clk 0:02:15]}  Qg5 {[%clk 0:01:59]} 18. Ba3 {[%clk 0:02:12]}  Bxa3 {[%clk 0:01:54]} 19. Rxa3 {[%clk 0:02:12]}  f5 {[%clk 0:01:46]} 20. gxf5 {[%clk 0:02:09]}  Qxf5 {[%clk 0:01:46]} 21. Raa1 {[%clk 0:01:39]}  Ng5 {[%clk 0:01:44]} 22. Kh2 {[%clk 0:01:39]}  Nf6 {[%clk 0:01:40]} 23. f4 {[%clk 0:01:39]}  exf3 {[%clk 0:01:39]} 24. Nxf3 {[%clk 0:01:40]}  Nxf3+ {[%clk 0:01:29]} 25. Rxf3 {[%clk 0:01:39]}  Qg5 {[%clk 0:01:28]} 26. Raf1 {[%clk 0:01:35]}  Re6 {[%clk 0:01:18]} 27. cxd5 {[%clk 0:01:20]}  cxd5 {[%clk 0:01:14]} 28. Qb5 {[%clk 0:01:01]}  Rae8 {[%clk 0:01:12]} 29. Qxb7 {[%clk 0:00:51]}  Rxe3 {[%clk 0:01:11]} 30. Rxe3 {[%clk 0:00:52]}  Rxe3 {[%clk 0:01:08]} 31. Qc8+ {[%clk 0:00:46]}  Re8 {[%clk 0:00:57]} 32. Qf5 {[%clk 0:00:42]}  Qg3+ {[%clk 0:00:54]} 33. Kh1 {[%clk 0:00:43]}  Re2 {[%clk 0:00:50]} 34. Qf3 {[%clk 0:00:17]}  Rb2 {[%clk 0:00:40]} 35. Qxg3 {[%clk 0:00:14]}  hxg3 {[%clk 0:00:41]} 36. Rf3 {[%clk 0:00:14]}  Rb1+ {[%clk 0:00:39]} 37. Bf1 {[%clk 0:00:13]}  Ne4 {[%clk 0:00:38]} 38. Kg2 {[%clk 0:00:13]}  Rb2+ {[%clk 0:00:38]} 39. Kg1 {[%clk 0:00:13]}  Rd2 {[%clk 0:00:36]} 40. Bd3 {[%clk 0:00:13]}  Nf2 {[%clk 0:00:21]} 41. Bb5 {[%clk 0:00:09]}  Nxh3+ {[%clk 0:00:20]} 42. Kh1 {[%clk 0:00:04]}  g2+ {[%clk 0:00:21]} 43. Kh2 {[%clk 0:00:04]}  g1=Q+ {[%clk 0:00:22]} 44. Kxh3 {[%clk 0:00:05]}  Rh2# {[%clk 0:00:22]} 0-1


[Site "https://www.chess.com"]

[Event "Titled Tuesday Blitz August 09 Early 2022"]
[White "Lebedev, Artem S."]
[Black "Sawlin, Leonid"]
[WhiteFideId "34272747"]
[BlackFideId "4689542"]
[WhiteElo "1699"]
[BlackElo "2412"]
[Result "0-1"]
[Round "10"]
[TimeControl "180+1"]
[Date "2022.08.09"]
[WhiteClock "0:00:01"]
[BlackClock "0:01:06"]

1. e4 {[%clk 0:03:00]}  c5 {[%clk 0:02:59]} 2. Nf3 {[%clk 0:03:00]}  e6 {[%clk 0:02:58]} 3. d4 {[%clk 0:03:01]}  cxd4 {[%clk 0:02:59]} 4. Nxd4 {[%clk 0:03:01]}  Nc6 {[%clk 0:02:59]} 5. Nc3 {[%clk 0:02:56]}  Nf6 {[%clk 0:02:59]} 6. Ndb5 {[%clk 0:02:34]}  Bc5 {[%clk 0:02:55]} 7. Nd6+ {[%clk 0:02:30]}  Ke7 {[%clk 0:02:52]} 8. Nc4 {[%clk 0:02:05]}  b5 {[%clk 0:02:50]} 9. Nxb5 {[%clk 0:02:01]}  Nxe4 {[%clk 0:02:48]} 10. Be3 {[%clk 0:01:58]}  Bxe3 {[%clk 0:02:47]} 11. Nxe3 {[%clk 0:01:52]}  Qa5+ {[%clk 0:02:47]} 12. c3 {[%clk 0:01:52]}  a6 {[%clk 0:02:47]} 13. Nd4 {[%clk 0:01:47]}  Bb7 {[%clk 0:02:47]} 14. Nxc6+ {[%clk 0:01:44]}  Bxc6 {[%clk 0:02:46]} 15. Bd3 {[%clk 0:01:43]}  Rhb8 {[%clk 0:02:42]} 16. Bxe4 {[%clk 0:01:40]}  Bxe4 {[%clk 0:02:37]} 17. b4 {[%clk 0:01:28]}  Qe5 {[%clk 0:02:33]} 18. Qd2 {[%clk 0:01:20]}  Bxg2 {[%clk 0:02:22]} 19. Rg1 {[%clk 0:01:15]}  Bc6 {[%clk 0:02:22]} 20. O-O-O {[%clk 0:01:00]}  a5 {[%clk 0:01:38]} 21. Nc4 {[%clk 0:00:56]}  Qc7 {[%clk 0:01:34]} 22. Nxa5 {[%clk 0:00:50]}  Bd5 {[%clk 0:01:31]} 23. Qg5+ {[%clk 0:00:44]}  Ke8 {[%clk 0:01:31]} 24. Qxg7 {[%clk 0:00:25]}  Rxb4 {[%clk 0:01:30]} 25. Qg8+ {[%clk 0:00:21]}  Ke7 {[%clk 0:01:30]} 26. Qg5+ {[%clk 0:00:19]}  Kd6 {[%clk 0:01:29]} 27. Qg3+ {[%clk 0:00:18]}  e5 {[%clk 0:01:29]} 28. Rxd5+ {[%clk 0:00:15]}  Kxd5 {[%clk 0:01:29]} 29. Rd1+ {[%clk 0:00:15]}  Ke6 {[%clk 0:01:29]} 30. Qh3+ {[%clk 0:00:14]}  Ke7 {[%clk 0:01:25]} 31. Rxd7+ {[%clk 0:00:06]}  Qxd7 {[%clk 0:01:24]} 32. Qxd7+ {[%clk 0:00:07]}  Kxd7 {[%clk 0:01:24]} 33. cxb4 {[%clk 0:00:06]}  Kd6 {[%clk 0:01:22]} 34. Kd2 {[%clk 0:00:06]}  Kd5 {[%clk 0:01:22]} 35. Ke3 {[%clk 0:00:05]}  Ra7 {[%clk 0:01:22]} 36. a3 {[%clk 0:00:05]}  f5 {[%clk 0:01:22]} 37. f4 {[%clk 0:00:05]}  e4 {[%clk 0:01:22]} 38. Kd2 {[%clk 0:00:03]}  Rg7 {[%clk 0:01:18]} 39. Nb3 {[%clk 0:00:02]}  Rg2+ {[%clk 0:01:18]} 40. Ke1 {[%clk 0:00:02]}  Rxh2 {[%clk 0:01:17]} 41. Nc5 {[%clk 0:00:02]}  Ra2 {[%clk 0:01:16]} 42. a4 {[%clk 0:00:02]}  Rb2 {[%clk 0:01:17]} 43. a5 {[%clk 0:00:02]}  Rxb4 {[%clk 0:01:16]} 44. Nd7 {[%clk 0:00:02]}  Kd4 {[%clk 0:01:12]} 45. Nb6 {[%clk 0:00:02]}  Kd3 {[%clk 0:01:10]} 46. Nd5 {[%clk 0:00:02]}  Ra4 {[%clk 0:01:08]} 47. a6 {[%clk 0:00:01]}  e3 {[%clk 0:01:07]} 48. Nb6 {[%clk 0:00:01]}  Ra1# {[%clk 0:01:06]} 0-1


[Site "https://www.chess.com"]

[Event "Titled Tuesday Blitz August 09 Early 2022"]
[White "Locci, Damiano"]
[Black "Simonovic, Miroslav"]
[WhiteFideId "819751"]
[BlackFideId "919152"]
[WhiteElo "2311"]
[BlackElo "2043"]
[Result "1-0"]
[Round "10"]
[TimeControl "180+1"]
[Date "2022.08.09"]
[WhiteClock "0:00:40"]
[BlackClock "0:00:25"]

1. c4 {[%clk 0:02:56]}  c5 {[%clk 0:02:59]} 2. Nf3 {[%clk 0:02:56]}  Nc6 {[%clk 0:03:00]} 3. d4 {[%clk 0:02:55]}  cxd4 {[%clk 0:02:58]} 4. Nxd4 {[%clk 0:02:56]}  g6 {[%clk 0:02:58]} 5. e4 {[%clk 0:02:56]}  Bg7 {[%clk 0:02:58]} 6. Nc2 {[%clk 0:02:57]}  d6 {[%clk 0:02:55]} 7. Be2 {[%clk 0:02:57]}  Nf6 {[%clk 0:02:55]} 8. Nc3 {[%clk 0:02:56]}  O-O {[%clk 0:02:56]} 9. O-O {[%clk 0:02:56]}  b6 {[%clk 0:02:55]} 10. Be3 {[%clk 0:02:55]}  Bb7 {[%clk 0:02:56]} 11. f3 {[%clk 0:02:55]}  Rc8 {[%clk 0:02:56]} 12. Rc1 {[%clk 0:02:55]}  h6 {[%clk 0:02:51]} 13. Qd2 {[%clk 0:02:55]}  Kh7 {[%clk 0:02:51]} 14. Rfd1 {[%clk 0:02:55]}  Ne5 {[%clk 0:02:46]} 15. b3 {[%clk 0:02:50]}  Qc7 {[%clk 0:02:44]} 16. Na3 {[%clk 0:02:49]}  Bc6 {[%clk 0:02:35]} 17. Nab5 {[%clk 0:02:48]}  Qb7 {[%clk 0:02:31]} 18. h3 {[%clk 0:02:28]}  Rfd8 {[%clk 0:02:30]} 19. Nd4 {[%clk 0:02:25]}  Be8 {[%clk 0:02:17]} 20. f4 {[%clk 0:02:22]}  Nc6 {[%clk 0:02:16]} 21. Nc2 {[%clk 0:02:12]}  Na5 {[%clk 0:02:08]} 22. Bf3 {[%clk 0:02:10]}  Bc6 {[%clk 0:02:06]} 23. Qd3 {[%clk 0:01:55]}  Qa8 {[%clk 0:02:04]} 24. Nb4 {[%clk 0:01:54]}  Bb7 {[%clk 0:02:03]} 25. Nbd5 {[%clk 0:01:50]}  e6 {[%clk 0:01:55]} 26. Nxf6+ {[%clk 0:01:44]}  Bxf6 {[%clk 0:01:56]} 27. Nb5 {[%clk 0:01:43]}  Be7 {[%clk 0:01:48]} 28. b4 {[%clk 0:01:37]}  Nc6 {[%clk 0:01:46]} 29. a3 {[%clk 0:01:37]}  Bf8 {[%clk 0:01:13]} 30. f5 {[%clk 0:01:37]}  Ne5 {[%clk 0:01:11]} 31. fxg6+ {[%clk 0:01:36]}  Kxg6 {[%clk 0:01:02]} 32. Qb1 {[%clk 0:01:14]}  Rxc4 {[%clk 0:00:54]} 33. Rxc4 {[%clk 0:01:11]}  Nxc4 {[%clk 0:00:55]} 34. e5+ {[%clk 0:01:12]}  Kg7 {[%clk 0:00:54]} 35. Bxb7 {[%clk 0:01:00]}  Qxb7 {[%clk 0:00:55]} 36. Bd4 {[%clk 0:00:52]}  d5 {[%clk 0:00:44]} 37. Nd6 {[%clk 0:00:49]}  Qe7 {[%clk 0:00:36]} 38. Rf1 {[%clk 0:00:46]}  Qg5 {[%clk 0:00:31]} 39. Rxf7+ {[%clk 0:00:40]}  Kg8 {[%clk 0:00:25]} 40. Qh7# {[%clk 0:00:40]} 1-0


[Site "https://www.chess.com"]

[Event "Titled Tuesday Blitz August 09 Early 2022"]
[White "Machidon, Cristi"]
[Black "Najdin, Danil"]
[WhiteFideId "13904590"]
[BlackFideId "4172426"]
[WhiteElo "2312"]
[BlackElo "2240"]
[Result "1-0"]
[Round "10"]
[TimeControl "180+1"]
[Date "2022.08.09"]
[WhiteClock "0:00:06"]
[BlackClock "0:00:03"]

1. d4 {[%clk 0:02:55]}  g6 {[%clk 0:02:54]} 2. e4 {[%clk 0:02:54]}  c6 {[%clk 0:02:53]} 3. Nf3 {[%clk 0:02:47]}  d5 {[%clk 0:02:48]} 4. Nc3 {[%clk 0:02:47]}  Bg7 {[%clk 0:02:46]} 5. h3 {[%clk 0:02:45]}  Nf6 {[%clk 0:02:44]} 6. e5 {[%clk 0:02:45]}  Ne4 {[%clk 0:02:42]} 7. Bd3 {[%clk 0:02:44]}  Nxc3 {[%clk 0:02:35]} 8. bxc3 {[%clk 0:02:45]}  O-O {[%clk 0:02:34]} 9. O-O {[%clk 0:02:45]}  f6 {[%clk 0:02:34]} 10. Bf4 {[%clk 0:02:43]}  Nd7 {[%clk 0:02:27]} 11. exf6 {[%clk 0:02:32]}  exf6 {[%clk 0:02:25]} 12. Re1 {[%clk 0:02:32]}  Re8 {[%clk 0:02:06]} 13. Rxe8+ {[%clk 0:02:09]}  Qxe8 {[%clk 0:02:06]} 14. a4 {[%clk 0:02:10]}  Nf8 {[%clk 0:02:04]} 15. a5 {[%clk 0:02:07]}  Ne6 {[%clk 0:01:58]} 16. Bg3 {[%clk 0:02:07]}  Bh6 {[%clk 0:01:47]} 17. c4 {[%clk 0:01:38]}  Nf4 {[%clk 0:01:42]} 18. Bf1 {[%clk 0:01:37]}  dxc4 {[%clk 0:01:33]} 19. Bxc4+ {[%clk 0:01:21]}  Be6 {[%clk 0:01:32]} 20. Bxf4 {[%clk 0:01:21]}  Bxf4 {[%clk 0:01:32]} 21. Qe2 {[%clk 0:01:21]}  Bf7 {[%clk 0:01:20]} 22. Bxf7+ {[%clk 0:01:12]}  Qxf7 {[%clk 0:01:16]} 23. Rb1 {[%clk 0:01:06]}  Re8 {[%clk 0:01:14]} 24. Qd3 {[%clk 0:01:04]}  Re7 {[%clk 0:01:04]} 25. g3 {[%clk 0:01:04]}  Bc7 {[%clk 0:00:57]} 26. Rxb7 {[%clk 0:01:00]}  Bxa5 {[%clk 0:00:57]} 27. Rxe7 {[%clk 0:00:55]}  Qxe7 {[%clk 0:00:58]} 28. Qc4+ {[%clk 0:00:55]}  Kg7 {[%clk 0:00:52]} 29. Qxc6 {[%clk 0:00:54]}  Bc7 {[%clk 0:00:38]} 30. Kg2 {[%clk 0:00:51]}  a5 {[%clk 0:00:37]} 31. d5 {[%clk 0:00:50]}  h5 {[%clk 0:00:26]} 32. c4 {[%clk 0:00:46]}  Bd6 {[%clk 0:00:26]} 33. Qa4 {[%clk 0:00:22]}  Bb4 {[%clk 0:00:19]} 34. Qc2 {[%clk 0:00:22]}  Qc5 {[%clk 0:00:15]} 35. Nh4 {[%clk 0:00:18]}  Qd4 {[%clk 0:00:13]} 36. Qxg6+ {[%clk 0:00:17]}  Kf8 {[%clk 0:00:13]} 37. Qh6+ {[%clk 0:00:14]}  Ke8 {[%clk 0:00:12]} 38. Qxh5+ {[%clk 0:00:14]}  Kd8 {[%clk 0:00:11]} 39. Qh8+ {[%clk 0:00:14]}  Kc7 {[%clk 0:00:11]} 40. Qg7+ {[%clk 0:00:14]}  Kb6 {[%clk 0:00:10]} 41. Nf3 {[%clk 0:00:13]}  Qxc4 {[%clk 0:00:06]} 42. Qxf6+ {[%clk 0:00:13]}  Kb5 {[%clk 0:00:06]} 43. d6 {[%clk 0:00:12]}  Qd5 {[%clk 0:00:04]} 44. h4 {[%clk 0:00:06]}  Bxd6 {[%clk 0:00:04]} 45. h5 {[%clk 0:00:06]}  Bc5 {[%clk 0:00:02]} 46. h6 {[%clk 0:00:06]}  Qa2 {[%clk 0:00:02]} 47. h7 {[%clk 0:00:05]}  Qxf2+ {[%clk 0:00:02]} 48. Kh3 {[%clk 0:00:05]}  Qf1+ {[%clk 0:00:03]} 49. Kg4 {[%clk 0:00:05]}  Qh1 {[%clk 0:00:03]} 50. h8=Q {[%clk 0:00:05]}  Qxh8 {[%clk 0:00:03]} 51. Qxh8 {[%clk 0:00:06]} 1-0


[Site "https://www.chess.com"]

[Event "Titled Tuesday Blitz August 09 Early 2022"]
[White "Makarian, Rudik"]
[Black "Dubov, Daniil"]
[WhiteFideId "44105681"]
[BlackFideId "24126055"]
[WhiteElo "2403"]
[BlackElo "2791"]
[Result "0-1"]
[Round "10"]
[TimeControl "180+1"]
[Date "2022.08.09"]
[WhiteClock "0:01:09"]
[BlackClock "0:00:35"]

1. d3 {[%clk 0:02:58]}  d5 {[%clk 0:02:59]} 2. f4 {[%clk 0:02:58]}  g6 {[%clk 0:02:58]} 3. Nf3 {[%clk 0:02:59]}  Bg7 {[%clk 0:02:58]} 4. g3 {[%clk 0:02:59]}  Nc6 {[%clk 0:02:57]} 5. Bg2 {[%clk 0:02:59]}  Bg4 {[%clk 0:02:57]} 6. Nc3 {[%clk 0:02:57]}  Bxf3 {[%clk 0:02:54]} 7. Bxf3 {[%clk 0:02:57]}  e6 {[%clk 0:02:54]} 8. e4 {[%clk 0:02:53]}  dxe4 {[%clk 0:02:44]} 9. Nxe4 {[%clk 0:02:47]}  Nf6 {[%clk 0:02:43]} 10. O-O {[%clk 0:02:45]}  O-O {[%clk 0:02:42]} 11. c3 {[%clk 0:02:44]}  Nd5 {[%clk 0:02:36]} 12. Qe2 {[%clk 0:02:42]}  Nce7 {[%clk 0:02:36]} 13. d4 {[%clk 0:02:37]}  c6 {[%clk 0:02:35]} 14. Bd2 {[%clk 0:02:30]}  Nf5 {[%clk 0:02:34]} 15. Nc5 {[%clk 0:02:24]}  Nxd4 {[%clk 0:02:30]} 16. cxd4 {[%clk 0:01:43]}  Bxd4+ {[%clk 0:02:31]} 17. Kg2 {[%clk 0:01:44]}  Bxc5 {[%clk 0:02:31]} 18. h4 {[%clk 0:01:45]}  h5 {[%clk 0:02:25]} 19. Rad1 {[%clk 0:01:38]}  Qf6 {[%clk 0:02:20]} 20. Bxd5 {[%clk 0:01:27]}  cxd5 {[%clk 0:02:14]} 21. Bc3 {[%clk 0:01:28]}  d4 {[%clk 0:02:13]} 22. Be1 {[%clk 0:01:28]}  Qf5 {[%clk 0:02:06]} 23. Qf3 {[%clk 0:01:26]}  Rfd8 {[%clk 0:02:02]} 24. Bf2 {[%clk 0:01:26]}  d3 {[%clk 0:01:52]} 25. Qxb7 {[%clk 0:01:09]}  Rab8 {[%clk 0:01:43]} 26. Qc7 {[%clk 0:01:10]}  Qd5+ {[%clk 0:00:57]} 27. Kh3 {[%clk 0:01:09]}  Rdc8 {[%clk 0:00:38]} 28. Qe5 {[%clk 0:01:07]}  Qxe5 {[%clk 0:00:36]} 29. fxe5 {[%clk 0:01:08]}  Rxb2 {[%clk 0:00:36]} 30. Rc1 {[%clk 0:01:09]}  Rc2 {[%clk 0:00:35]} 0-1


[Site "https://www.chess.com"]